bitfinex-derivatives/quotes_SOLF0:USTF0_20250609
["timestamp","ask_amount","ask_price","bid_price","bid_amount"]
[1749438788340,5.49844285,151.49,151.48,2.74029104]
[1749438789142,5.49844285,151.49,151.48,9.33849104]
[1749438789939,0.04438835,151.5,151.48,9.33849104]
[1749438790243,5.49672034,151.49,151.48,9.33849104]
[1749438790545,5.49672034,151.49,151.48,2.74029104]
[1749438795339,5.49672034,151.49,151.48,9.33849104]
[1749438795544,5.49672034,151.49,151.48,2.74029104]
[1749438797039,5.49672034,151.49,151.48,9.33849104]
[1749438797240,0.04438835,151.5,151.48,9.33849104]
[1749438797544,0.04438835,151.5,151.49,2.74029104]
[1749438798842,0.04438835,151.5,151.49,36.72029104]
[1749438799238,5.55487688,151.5,151.49,36.72029104]
[1749438801046,5.55487688,151.5,151.49,33.98]
[1749438801246,5.55487688,151.5,151.49,36.72029104]
[1749438801750,5.55487688,151.5,151.49,43.31809104]
[1749438811257,5.57465911,151.5,151.49,43.31809104]
[1749438814355,6.5953,151.55,151.52,6.5965]
[1749438814560,13.311581,151.57,151.54,2.74029104]
[1749438814762,10.80564346,151.56,151.54,2.74029104]
[1749438815061,4.21060736,151.55,151.54,2.74029104]
[1749438815263,6.595,151.56,151.54,2.74029104]
[1749438815468,6.64173012,151.56,151.54,2.74029104]
[1749438815662,4.21004385,151.55,151.54,2.74029104]
[1749438816063,10.80436719,151.55,151.54,2.74029104]
[1749438816364,4.20931362,151.55,151.53,0.04835427]
[1749438816566,10.80472591,151.54,151.53,0.04835427]
[1749438816767,10.80472595,151.54,151.53,0.04835427]
[1749438816966,6.5956,151.54,151.53,0.04835427]
[1749438817464,10.80429954,151.54,151.53,0.04835427]
[1749438818069,10.80405064,151.54,151.53,0.04835427]
[1749438818470,6.5956,151.54,151.53,0.04835427]
[1749438818773,10.80354238,151.54,151.53,0.04835427]
[1749438818974,10.80354357,151.54,151.53,0.04835427]
[1749438819169,6.5956,151.54,151.53,0.04835427]
[1749438819374,10.80349625,151.54,151.53,0.04835427]
[1749438819770,13.54378729,151.54,151.53,0.04835427]
[1749438820165,13.54345233,151.54,151.53,0.04835427]
[1749438820466,13.54313259,151.54,151.53,0.04835427]
[1749438820870,10.8029313,151.54,151.53,0.04835427]
[1749438821174,6.5956,151.54,151.53,0.04835427]
[1749438821375,10.8029313,151.54,151.53,0.04835427]
[1749438821576,10.80313985,151.54,151.53,0.04835427]
[1749438821770,10.80309859,151.54,151.53,0.04835427]
[1749438822075,6.5956,151.54,151.53,0.04835427]
[1749438822270,10.80316047,151.54,151.53,0.04835427]
[1749438822770,10.80322235,151.54,151.53,0.04835427]
[1749438823076,6.5956,151.54,151.53,0.04835427]
[1749438823475,10.80315436,151.54,151.53,0.04835427]
[1749438823868,6.5956,151.54,151.53,0.04835427]
[1749438824067,10.8033411,151.54,151.53,0.04835427]
[1749438824268,6.5956,151.54,151.53,0.04835427]
[1749438824478,10.80334725,151.54,151.53,0.04835427]
[1749438824678,10.79885714,151.54,151.53,0.04835427]
[1749438824976,10.79880869,151.54,151.53,0.04835427]
[1749438825279,6.5956,151.54,151.53,0.04835427]
[1749438825479,10.79888137,151.54,151.53,0.04835427]
[1749438825675,10.79895524,151.54,151.53,0.04835427]
[1749438825879,10.79905214,151.54,151.53,0.04835427]
[1749438826075,10.79998978,151.54,151.53,0.04835427]
[1749438826379,16.30341909,151.54,151.53,0.04835427]
[1749438826577,12.09854815,151.54,151.53,0.04835427]
[1749438826783,16.30341251,151.54,151.53,0.04835427]
[1749438827681,12.09854815,151.54,151.53,0.04835427]
[1749438827884,16.30343982,151.54,151.53,0.04835427]
[1749438828082,12.09854815,151.54,151.53,0.04835427]
[1749438828383,9.70792945,151.54,151.53,2.78864531]
[1749438828684,9.70797971,151.54,151.53,2.78864531]
[1749438828886,16.30357971,151.54,151.53,2.78864531]
[1749438829583,12.09854815,151.54,151.53,2.78864531]
[1749438829981,5.50294815,151.54,151.53,2.78864531]
[1749438830178,9.70804682,151.54,151.53,2.78864531]
[1749438830684,16.30364682,151.54,151.53,0.04835427]
[1749438830877,16.30364682,151.54,151.53,2.78864531]
[1749438831075,16.31018791,151.54,151.53,2.78864531]
[1749438831377,12.09854815,151.54,151.53,2.78864531]
[1749438831582,12.09854815,151.54,151.53,0.04835427]
[1749438831884,16.30959151,151.54,151.53,2.78864531]
[1749438832282,16.3099201,151.54,151.53,0.04835427]
[1749438832588,6.5969,151.52,151.5,2.74029104]
[1749438832784,9.7143201,151.51,151.5,2.74029104]
[1749438832989,9.71623645,151.51,151.5,2.74029104]
[1749438833388,9.71622994,151.51,151.5,2.74029104]
[1749438833590,9.71617924,151.51,151.5,2.74029104]
[1749438834683,5.50294815,151.51,151.5,2.74029104]
[1749438835282,9.71339519,151.51,151.5,2.74029104]
[1749438836780,5.50294815,151.51,151.5,2.74029104]
[1749438836981,9.71651154,151.51,151.5,2.74029104]
[1749438837287,9.71659409,151.51,151.5,2.74029104]
[1749438838085,5.50294815,151.51,151.5,2.74029104]
[1749438838281,9.71351917,151.51,151.49,40.62691762]
[1749438838487,6.64697935,151.52,151.5,2.74029104]
[1749438838685,6.64697935,151.52,151.51,2.74029104]
[1749438838982,16.37070608,151.52,151.51,2.74029104]
[1749438839593,16.3711706,151.52,151.51,2.74029104]
[1749438840392,16.36680004,151.52,151.51,2.74029104]
[1749438840592,16.37061019,151.52,151.51,2.74029104]
[1749438841485,16.36923994,151.52,151.51,2.74029104]
[1749438841988,12.15996428,151.52,151.51,2.74029104]
[1749438842190,6.5974,151.51,151.5,2.74029104]
[1749438842388,16.31946268,151.51,151.5,2.74029104]
[1749438842590,12.11038493,151.51,151.5,2.74029104]
[1749438842788,16.31932015,151.51,151.5,2.74029104]
[1749438842987,6.5974,151.5,151.49,0.04921762]
[1749438843183,8.25327597,151.5,151.46,36.60029104]
[1749438843384,12.11098493,151.49,151.47,2.74029104]
[1749438843589,9.7204134,151.48,151.47,2.74029104]
[1749438843790,5.51298493,151.48,151.47,2.74029104]
[1749438844296,9.72029534,151.48,151.47,9.33899104]
[1749438844893,9.7163918,151.48,151.47,9.33899104]
[1749438845296,5.51298493,151.48,151.47,9.33899104]
[1749438845795,9.71632987,151.48,151.47,9.33899104]
[1749438846394,9.71632987,151.48,151.47,2.74029104]
[1749438846595,9.71316993,151.48,151.47,2.74029104]
[1749438846997,9.71310973,151.48,151.47,2.74029104]
[1749438847192,9.71281998,151.48,151.47,2.74029104]
[1749438847498,9.71291838,151.48,151.47,9.33899104]
[1749438847998,5.51298493,151.48,151.47,9.33899104]
[1749438848194,9.71215042,151.48,151.47,9.33899104]
[1749438848501,9.71220213,151.48,151.47,9.33899104]
[1749438848688,9.7121009,151.48,151.47,9.33899104]
[1749438848893,5.51298493,151.48,151.47,9.33899104]
[1749438849088,9.68963262,151.48,151.47,9.33899104]
[1749438849801,9.68796531,151.48,151.47,9.33899104]
[1749438849997,9.68807071,151.48,151.47,9.33899104]
[1749438850192,9.68801003,151.48,151.47,9.33899104]
[1749438850393,9.68805049,151.48,151.47,2.74029104]
[1749438850594,9.68806512,151.48,151.47,2.74029104]
[1749438850999,9.68631354,151.48,151.47,2.74029104]
[1749438851401,9.68631354,151.48,151.47,9.33899104]
[1749438851604,5.51298493,151.48,151.47,9.33899104]
[1749438851796,9.68553787,151.48,151.47,9.33899104]
[1749438851997,5.51298493,151.48,151.47,9.33899104]
[1749438854406,0.05007935,151.52,151.5,6.5972]
[1749438854606,0.05007935,151.52,151.51,2.74029104]
[1749438854793,9.74816822,151.52,151.51,2.74029104]
[1749438854997,9.74816827,151.52,151.51,2.74029104]
[1749438855397,9.74892788,151.52,151.51,2.74029104]
[1749438855597,5.54199368,151.52,151.51,2.74029104]
[1749438855813,9.74913471,151.52,151.51,2.74029104]
[1749438856102,5.54199368,151.52,151.51,2.74029104]
[1749438856303,9.74912862,151.52,151.51,2.74029104]
[1749438856698,9.74627675,151.52,151.51,2.74029104]
[1749438857006,5.54199368,151.52,151.51,2.74029104]
[1749438857497,9.74610269,151.52,151.51,2.74029104]
[1749438857697,9.74633164,151.52,151.51,9.33719104]
[1749438857904,9.74651134,151.52,151.51,9.33719104]
[1749438858812,9.74664822,151.52,151.51,9.33719104]
[1749438859107,9.74667244,151.52,151.51,9.33719104]
[1749438859307,9.74665694,151.52,151.51,9.33719104]
[1749438859703,9.74665694,151.52,151.51,2.74029104]
[1749438860412,9.76555566,151.52,151.51,9.33719104]
[1749438860911,9.76556864,151.52,151.51,9.33719104]
[1749438861210,9.7655026,151.52,151.51,9.33719104]
[1749438861405,9.76539937,151.52,151.51,9.33719104]
[1749438862211,9.76595892,151.52,151.51,9.33719104]
[1749438863418,5.54199368,151.52,151.51,9.33719104]
[1749438867420,17.29548996,151.58,151.55,6.5951]
[1749438867614,11.189,151.58,151.55,9.33539104]
[1749438867817,4.23136271,151.57,151.55,2.74029104]
[1749438868017,12.70008996,151.59,151.56,2.74029104]
[1749438868219,4.23243112,151.58,151.57,2.74029104]
[1749438869217,4.22919714,151.58,151.56,0.04731549]
[1749438869414,0.05024434,151.59,151.56,0.04731549]
[1749438869610,10.82322343,151.58,151.56,0.04731549]
[1749438869814,6.5939,151.58,151.56,0.04731549]
[1749438870120,4.24280079,151.57,151.56,0.04731549]
[1749438871016,6.5939,151.58,151.56,0.04731549]
[1749438871216,4.24796187,151.57,151.56,0.04731549]
[1749438871415,6.5939,151.58,151.56,0.04731549]
[1749438872017,6.64384434,151.59,151.56,6.64191549]
[1749438872219,4.2446731,151.58,151.56,6.64191549]
[1749438872623,0.05024434,151.59,151.56,6.64191549]
[1749438872816,4.2502169,151.58,151.56,6.64191549]
[1749438873025,0.05024434,151.59,151.56,6.64191549]
[1749438873425,4.25015967,151.58,151.56,6.64191549]
[1749438873817,10.84415967,151.58,151.56,6.64191549]
[1749438874017,6.594,151.58,151.56,6.64191549]
[1749438874720,6.64384434,151.59,151.56,6.64191549]
[1749438874923,4.25019783,151.58,151.56,6.64191549]
[1749438875328,4.25019783,151.58,151.56,0.04731549]
[1749438875523,4.25019783,151.57,151.56,0.04731549]
[1749438876015,0.05024434,151.59,151.56,0.04731549]
[1749438876213,4.25997374,151.58,151.56,0.04731549]
[1749438876419,4.25970884,151.57,151.56,0.04731549]
[1749438876724,10.85396334,151.57,151.56,0.04731549]
[1749438877829,10.85735684,151.57,151.56,0.04731549]
[1749438878330,10.857362,151.57,151.56,0.04731549]
[1749438878536,6.5943,151.57,151.56,0.04731549]
[1749438878838,10.85665153,151.57,151.56,0.04731549]
[1749438879034,17.42445153,151.57,151.56,0.04731549]
[1749438879335,17.42445153,151.57,151.53,33.86]
[1749438879336,6.5956,151.54,151.53,33.86]
[1749438879534,12.07433826,151.54,151.53,33.86]
[1749438879738,5.47873826,151.54,151.51,4.27194937]
[1749438879946,12.07513826,151.53,151.51,4.27194937]
[1749438880239,6.5964,151.53,151.51,4.27194937]
[1749438880832,5.47386364,151.52,151.51,10.86884937]
[1749438881137,6.5964,151.53,151.51,10.86884937]
[1749438881533,6.5964,151.53,151.51,4.27194937]
[1749438881741,5.47387554,151.52,151.5,33.82852571]
[1749438881932,5.47387554,151.51,151.5,33.82852571]
[1749438882332,12.07077554,151.51,151.5,33.82852571]
[1749438883235,12.07077554,151.51,151.5,0.04852571]
[1749438884238,16.31798428,151.51,151.5,0.04852571]
[1749438884430,16.31796097,151.51,151.5,0.04852571]
[1749438884936,16.31799853,151.51,151.5,0.04852571]
[1749438885340,16.31797712,151.51,151.5,0.04852571]
[1749438885639,12.07077554,151.51,151.5,0.04852571]
[1749438889440,16.28863386,151.51,151.5,0.04852571]
[1749438890042,16.28865816,151.51,151.5,0.04852571]
[1749438890443,12.07077554,151.51,151.5,0.04852571]
[1749438890944,16.27550267,151.51,151.5,0.04852571]
[1749438892141,16.27074092,151.51,151.5,0.04852571]
[1749438892640,12.07077554,151.51,151.5,0.04852571]
[1749438892838,16.27062034,151.51,151.5,0.04852571]
[1749438893244,16.27055728,151.51,151.5,0.04852571]
[1749438893743,16.27058147,151.51,151.5,0.04852571]
[1749438893944,16.27070205,151.51,151.5,0.04852571]
[1749438894246,16.27060398,151.51,151.5,0.04852571]
[1749438894546,16.27063709,151.51,151.5,0.04852571]
[1749438894845,16.27058742,151.51,151.5,0.04852571]
[1749438895246,19.00469646,151.51,151.5,0.04852571]
[1749438895539,19.0045888,151.51,151.5,0.04852571]
[1749438895742,19.0045258,151.51,151.5,0.04852571]
[1749438897152,19.00602842,151.51,151.5,0.04852571]
[1749438897344,14.80820297,151.51,151.5,0.04852571]
[1749438897745,19.00602842,151.51,151.5,0.04852571]
[1749438898743,14.80820297,151.51,151.5,0.04852571]
[1749438898945,19.00534631,151.51,151.5,0.04852571]
[1749438899347,19.00474523,151.51,151.5,0.04852571]
[1749438899551,14.80820297,151.51,151.5,0.04852571]
[1749438899743,19.00474523,151.51,151.5,0.04852571]
[1749438900145,14.80820297,151.51,151.5,0.04852571]
[1749438900349,19.00558238,151.51,151.5,0.04852571]
[1749438900545,19.00525561,151.51,151.5,0.04852571]
[1749438900745,19.00453695,151.51,151.5,0.04852571]
[1749438900940,14.80820297,151.51,151.5,0.04852571]
[1749438901146,19.00426755,151.51,151.5,0.04852571]
[1749438901346,14.80820297,151.51,151.5,0.04852571]
[1749438901546,19.0043391,151.51,151.5,0.04852571]
[1749438902047,19.0052309,151.51,151.5,0.04852571]
[1749438902248,19.005231,151.51,151.5,0.04852571]
[1749438902650,19.00539641,151.51,151.5,0.04852571]
[1749438903352,14.80820297,151.51,151.5,0.04852571]
[1749438904251,19.00504345,151.51,151.5,0.04852571]
[1749438904448,19.00518912,151.51,151.5,0.04852571]
[1749438904653,14.80820297,151.51,151.5,0.04852571]
[1749438904949,13.53113175,151.51,151.5,0.04852571]
[1749438905149,18.97856661,151.51,151.5,0.04852571]
[1749438905646,18.97729904,151.51,151.5,0.04852571]
[1749438906046,12.38039904,151.51,151.45,33.74]
[1749438906248,2.73742743,151.48,151.44,36.47742743]
[1749438906447,5.44743486,151.47,151.44,36.47742743]
[1749438906750,2.73742743,151.45,151.4,2.73742743]
[1749438906950,8.18182617,151.44,151.41,2.73742743]
[1749438907155,12.04479874,151.43,151.41,2.73742743]
[1749438907356,12.04479874,151.43,151.4,6.6014]
[1749438907357,6.6004,151.43,151.4,6.6014]
[1749438907653,0.05073235,151.44,151.4,6.6014]
[1749438907855,5.44009223,151.43,151.39,4.28015895]
[1749438908053,0.05073235,151.44,151.39,4.28015895]
[1749438908255,0.05073235,151.44,151.38,40.2859]
[1749438908256,0.05073235,151.44,151.43,6.6004]
[1749438908757,5.48929999,151.44,151.43,6.6004]
[1749438908958,0.05073235,151.44,151.43,6.6004]
[1749438911859,0.05073235,151.44,151.43,10.88055895]
[1749438921059,0.05073235,151.44,151.43,15.40805895]
[1749438921264,5.43709223,151.49,151.48,6.5981]
[1749438921461,9.61520217,151.49,151.48,6.5981]
[1749438921666,5.43709223,151.49,151.48,6.5981]
[1749438921868,9.61887135,151.49,151.48,6.5981]
[1749438922168,9.61886983,151.49,151.48,6.5981]
[1749438922368,9.61894875,151.49,151.48,6.5981]
[1749438922569,5.43709223,151.49,151.48,6.5981]
[1749438927870,9.64383098,151.49,151.48,6.5981]
[1749438928171,9.64385466,151.49,151.48,6.5981]
[1749438928368,5.43709223,151.49,151.48,6.5981]
[1749438928570,9.64385466,151.49,151.48,6.5981]
[1749438928767,9.64385356,151.49,151.48,6.5981]
[1749438928961,9.64385467,151.49,151.48,6.5981]
[1749438929171,5.43709223,151.49,151.48,6.5981]
[1749438930062,5.43709223,151.49,151.47,6.64310863]
[1749438930267,5.43709223,151.48,151.47,6.64310863]
[1749438931168,5.43709223,151.48,151.47,0.04460863]
[1749438932071,5.43709223,151.48,151.47,6.64330863]
[1749438935578,5.43709223,151.48,151.47,10.92346758]
[1749438937278,5.43709223,151.48,151.47,9.38056442]
[1749438940380,5.43709223,151.48,151.47,0.04460863]
[1749438940583,12.37430596,151.48,151.44,2.73725579]
[1749438940784,9.64156044,151.47,151.44,2.73725579]
[1749438941078,5.43709223,151.46,151.44,2.73725579]
[1749438941280,5.43709223,151.45,151.44,2.73725579]
[1749438942081,5.43709223,151.45,151.44,9.33725579]
[1749438943484,5.43709223,151.45,151.44,6.6]
[1749438944482,5.43709223,151.45,151.44,10.87909846]
[1749438944882,0.04187524,151.46,151.45,6.5996]
[1749438945078,5.4994009,151.46,151.45,6.5996]
[1749438945285,0.04187524,151.46,151.45,6.5996]
[1749438945482,5.49977511,151.46,151.45,6.5996]
[1749438945779,5.49977511,151.46,151.44,6.5998]
[1749438945977,5.45789987,151.45,151.44,6.5998]
[1749438946977,5.45740945,151.45,151.44,6.5998]
[1749438953188,5.45740945,151.45,151.44,10.87889846]
[1749438953988,0.04187524,151.46,151.45,6.5996]
[1749438954184,5.49725773,151.46,151.45,6.5996]
[1749438955091,5.49725773,151.46,151.45,5.58631854]
[1749438966598,0.04187524,151.46,151.45,5.58631854]
[1749438967497,7.524e-05,151.46,151.45,5.58631854]
[1749438967701,39.79146898,151.54,151.44,8.55819692]
[1749438967900,15.79264845,151.53,151.49,4.27909846]
[1749438968103,9.68117947,151.52,151.5,6.5972]
[1749438968298,9.68075562,151.51,151.5,6.5972]
[1749438968502,5.46589021,151.51,151.5,6.5972]
[1749438975313,0.04984378,151.52,151.51,6.5969]
[1749438975514,5.53056354,151.52,151.51,6.5969]
[1749438979217,5.53056354,151.52,151.51,9.3328002]
[1749438980318,0.04984378,151.52,151.51,9.3328002]
[1749438980519,0.04984378,151.52,151.51,42.9328002]
[1749438985126,5.47356302,151.56,151.54,6.5954]
[1749438985325,6.5945,151.57,151.55,2.7359002]
[1749438985525,6.5945,151.57,151.54,6.5954]
[1749438985526,6.5945,151.57,151.56,2.7359002]
[1749438985722,16.31839883,151.57,151.55,2.7359002]
[1749438986028,5.47243681,151.56,151.55,2.7359002]
[1749438986427,9.72386487,151.56,151.55,2.7359002]
[1749438986731,9.72386487,151.56,151.55,9.3311002]
[1749438986933,5.47243681,151.56,151.55,9.3311002]
[1749438987431,9.72574535,151.56,151.55,9.3311002]
[1749438987626,9.72575907,151.56,151.55,9.3311002]
[1749438987932,5.47243681,151.56,151.55,9.3311002]
[1749438988626,9.72376394,151.56,151.55,9.3311002]
[1749438988832,5.47243681,151.56,151.55,9.3311002]
[1749438995534,5.47243681,151.57,151.55,9.3311002]
[1749438995740,0.04324512,151.58,151.54,0.04565387]
[1749438996038,0.04324512,151.58,151.57,2.7359002]
[1749438996238,5.51860289,151.58,151.57,2.7359002]
[1749439001539,9.77997316,151.58,151.56,2.7359002]
[1749439001738,5.47535777,151.57,151.55,36.2759002]
[1749439001941,12.07015777,151.56,151.55,33.54]
[1749439002237,5.47535777,151.56,151.54,0.04565387]
[1749439002441,5.47535777,151.55,151.54,0.04565387]
[1749439002644,12.07055777,151.55,151.54,0.04565387]
[1749439003444,5.47535777,151.55,151.54,0.04565387]
[1749439004243,5.47535777,151.55,151.54,2.78155407]
[1749439004639,12.07055777,151.55,151.54,2.78155407]
[1749439005142,12.46542899,151.55,151.52,33.54]
[1749439005441,0.04324512,151.58,151.5,2.7359002]
[1749439005442,12.46542899,151.54,151.5,2.7359002]
[1749439005644,5.47535777,151.53,151.5,2.7359002]
[1749439005846,5.47535777,151.52,151.5,2.7359002]
[1749439006038,2.7359002,151.54,151.5,9.3333002]
[1749439006039,6.5962,151.53,151.5,9.3333002]
[1749439006240,5.47927549,151.52,151.5,9.38124321]
[1749439006545,0.04580569,151.53,151.5,9.38124321]
[1749439006739,5.47975155,151.52,151.5,2.78384321]
[1749439007045,5.47975155,151.51,151.5,2.78384321]
[1749439007241,9.73698093,151.51,151.5,0.04794301]
[1749439007450,5.47975155,151.51,151.5,0.04794301]
[1749439009238,9.73837733,151.51,151.5,0.04794301]
[1749439010149,16.33527733,151.51,151.5,0.04794301]
[1749439010349,16.31409134,151.51,151.5,0.04794301]
[1749439011038,9.71723262,151.51,151.5,0.04794301]
[1749439011946,5.47975155,151.51,151.5,0.04794301]
[1749439017857,9.70279874,151.51,151.5,0.04794301]
[1749439018249,5.47975155,151.51,151.5,0.04794301]
[1749439018556,9.70279874,151.51,151.5,0.04794301]
[1749439019058,9.7020913,151.51,151.5,0.04794301]
[1749439019556,5.47975155,151.51,151.5,0.04794301]
[1749439019757,9.7020913,151.51,151.5,0.04794301]
[1749439019956,9.70213136,151.51,151.5,0.04794301]
[1749439020446,9.70213135,151.51,151.5,0.04794301]
[1749439020950,5.47975155,151.51,151.5,0.04794301]
[1749439021157,12.07665155,151.51,151.5,0.04794301]
[1749439021352,16.29995893,151.51,151.5,0.04794301]
[1749439021553,16.29996987,151.51,151.5,0.04794301]
[1749439022156,12.07665155,151.51,151.5,0.04794301]
[1749439026763,5.47975155,151.51,151.5,0.04794301]
[1749439026963,5.46185386,151.51,151.5,0.04794301]
[1749439028067,5.46185386,151.51,151.5,6.64534301]
[1749439029274,5.46185386,151.51,151.5,9.38098616]
[1749439031573,5.46185386,151.51,151.5,6.64534301]
[1749439031773,5.46185386,151.51,151.5,9.38098616]
[1749439032175,0.04580569,151.53,151.52,6.5965]
[1749439032376,5.50573557,151.53,151.52,9.33214315]
[1749439035269,5.46800932,151.58,151.52,2.73564315]
[1749439035474,9.69842221,151.57,151.56,2.73564315]
[1749439035674,9.69872091,151.57,151.55,2.73564315]
[1749439035975,5.46800932,151.56,151.55,2.73564315]
[1749439036570,5.46800932,151.56,151.55,9.33084315]
[1749439037974,5.46800932,151.56,151.55,2.73564315]
[1749439038171,5.46888683,151.56,151.55,2.73564315]
[1749439039578,9.70591664,151.56,151.54,2.7784583]
[1749439039878,5.46888683,151.55,151.54,2.7784583]
[1749439040073,9.7053485,151.55,151.54,2.7784583]
[1749439040376,9.7044713,151.55,151.54,2.7784583]
[1749439040576,9.71796619,151.55,151.54,2.7784583]
[1749439040776,12.45360934,151.55,151.54,0.04281515]
[1749439041177,12.45360934,151.55,151.5,42.81264315]
[1749439041178,12.45338416,151.55,151.5,42.81264315]
[1749439041371,12.45338416,151.54,151.5,42.81264315]
[1749439041572,14.80092998,151.53,151.5,42.81264315]
[1749439041774,5.46888683,151.52,151.5,42.81264315]
[1749439041975,5.46888683,151.51,151.5,36.21564315]
[1749439042785,5.46888683,151.51,151.5,42.81304315]
[1749439043285,9.7202328,151.51,151.5,42.81304315]
[1749439043483,9.72012139,151.51,151.5,42.81304315]
[1749439043881,9.72000378,151.51,151.5,36.21564315]
[1749439044273,5.46888683,151.51,151.5,36.21564315]
[1749439044583,9.72054823,151.51,151.5,36.21564315]
[1749439044883,5.46888683,151.51,151.5,36.21564315]
[1749439045578,9.70574824,151.51,151.5,36.21564315]
[1749439046777,9.70063995,151.51,151.5,36.21564315]
[1749439046982,9.70081764,151.51,151.5,36.21564315]
[1749439047181,9.70059602,151.51,151.5,36.21564315]
[1749439047379,5.46888683,151.51,151.5,36.21564315]
[1749439047578,9.70061727,151.51,151.5,36.21564315]
[1749439048087,9.70061727,151.51,151.5,42.81304315]
[1749439048286,9.70132846,151.51,151.5,42.81304315]
[1749439048479,4.23244163,151.51,151.5,42.81304315]
[1749439048784,9.70797641,151.51,151.5,42.81304315]
[1749439048987,5.47529975,151.51,151.5,42.81304315]
[1749439049381,9.70793625,151.51,151.5,42.81304315]
[1749439050583,5.47529975,151.51,151.5,42.81304315]
[1749439050784,9.70483359,151.51,151.5,42.81304315]
[1749439050986,9.7051136,151.51,151.5,42.81304315]
[1749439051480,9.70506494,151.51,151.5,42.81304315]
[1749439052078,9.70456962,151.51,151.5,36.21564315]
[1749439052285,5.47529975,151.51,151.5,36.21564315]
[1749439052474,9.70472121,151.51,151.5,36.21564315]
[1749439052989,9.70488356,151.51,151.5,36.21564315]
[1749439054087,5.47529975,151.51,151.5,36.21564315]
[1749439054287,9.7045997,151.51,151.5,36.21564315]
[1749439054489,16.30147924,151.51,151.5,36.21564315]
[1749439055086,9.70457924,151.51,151.5,36.21564315]
[1749439055289,9.70431213,151.51,151.5,36.21564315]
[1749439055587,9.70435324,151.51,151.5,36.21564315]
[1749439055777,16.30125324,151.51,151.5,33.48]
[1749439055978,16.30125324,151.51,151.49,0.04489749]
[1749439056184,9.7037172,151.5,151.49,0.04489749]
[1749439056383,5.47529975,151.5,151.49,0.04489749]
[1749439056585,9.70377777,151.5,151.49,0.04489749]
[1749439057090,9.70294502,151.5,151.49,2.78054064]
[1749439057284,9.70294502,151.5,151.49,0.04489749]
[1749439057485,12.07269975,151.5,151.49,0.04489749]
[1749439057686,16.30014058,151.5,151.49,0.04489749]
[1749439057885,12.07269975,151.5,151.49,0.04489749]
[1749439058085,16.29971427,151.5,151.49,0.04489749]
[1749439059389,10.82435925,151.5,151.49,0.04489749]
[1749439059591,16.29333636,151.5,151.49,0.04489749]
[1749439059888,9.69593636,151.5,151.49,0.04489749]
[1749439060491,9.69593636,151.5,151.49,6.64269749]
[1749439060893,5.46914343,151.5,151.49,6.64269749]
[1749439061088,9.69123473,151.5,151.49,9.37834064]
[1749439061289,9.69142259,151.5,151.49,9.37834064]
[1749439061688,5.46914343,151.5,151.49,9.37834064]
[1749439062292,9.69015096,151.5,151.49,9.37834064]
[1749439062494,9.6899524,151.5,151.49,9.37834064]
[1749439062695,5.46914343,151.5,151.49,9.37834064]
[1749439064994,0.0463127,151.52,151.5,6.5973]
[1749439065185,0.0463127,151.52,151.5,9.33294315]
[1749439065186,9.68687619,151.51,151.5,9.33294315]
[1749439065385,9.68687619,151.51,151.5,2.73564315]
[1749439065995,5.46568859,151.51,151.5,2.73564315]
[1749439066195,9.68214169,151.51,151.5,2.73564315]
[1749439066395,9.68214169,151.51,151.5,9.33304315]
[1749439066698,9.68185501,151.51,151.5,9.33304315]
[1749439066895,5.46568859,151.51,151.5,9.33304315]
[1749439067096,9.68181612,151.51,151.5,9.33304315]
[1749439067498,9.68183149,151.51,151.5,9.33304315]
[1749439067697,9.68183149,151.51,151.5,6.5974]
[1749439067899,9.68183149,151.51,151.49,0.04489749]
[1749439068196,5.46568859,151.5,151.49,0.04489749]
[1749439068401,16.27808708,151.5,151.49,0.04489749]
[1749439068597,16.2780172,151.5,151.49,0.04489749]
[1749439068796,12.06308859,151.5,151.49,0.04489749]
[1749439068990,16.27787413,151.5,151.49,0.04489749]
[1749439069799,16.28682225,151.5,151.49,0.04489749]
[1749439069996,12.06308859,151.5,151.49,0.04489749]
[1749439070499,16.2864108,151.5,151.49,0.04489749]
[1749439071507,12.06308859,151.5,151.49,0.04489749]
[1749439071704,16.28683489,151.5,151.49,0.04489749]
[1749439072204,12.06308859,151.5,151.49,0.04489749]
[1749439072406,16.28697128,151.5,151.49,0.04489749]
[1749439073100,19.02261443,151.5,151.49,0.04489749]
[1749439073497,19.0215233,151.5,151.49,0.04489749]
[1749439073906,19.0210148,151.5,151.49,0.04489749]
[1749439074504,19.02090975,151.5,151.49,0.04489749]
[1749439075108,19.01210484,151.5,151.49,0.04489749]
[1749439075299,19.01210485,151.5,151.49,0.04489749]
[1749439075502,19.01168227,151.5,151.49,0.04489749]
[1749439075706,14.79873174,151.5,151.49,0.04489749]
[1749439076000,19.01121274,151.5,151.49,0.04489749]
[1749439076204,19.01120561,151.5,151.49,0.04489749]
[1749439076911,19.00781806,151.5,151.49,0.04489749]
[1749439077106,19.00786961,151.5,151.49,0.04489749]
[1749439077612,19.00784447,151.5,151.49,0.04489749]
[1749439078505,19.00642994,151.5,151.49,0.04489749]
[1749439078707,14.79873174,151.5,151.49,0.04489749]
[1749439078913,19.00676807,151.5,151.49,0.04489749]
[1749439079111,19.00686523,151.5,151.49,0.04489749]